fUST/lending_fUST_20240709
["ID","MTS","AMOUNT","RATE_DAILY","PERIOD"]
[331564322,1720513841717,-153.0,0.00034904,2]
[331564323,1720513841727,-153.0,0.00034904,2]
[331564324,1720513841736,-151.27300156,0.0003493,2]
[331564325,1720513841746,-173.605559,0.00035,2]
[331564326,1720513841756,-2374.88264172,0.00035,4]
[331564327,1720513841766,-275.22284259,0.00035,120]
[331564328,1720513841775,-307.7104676,0.00035616,2]
[331564329,1720513841785,-153.0,0.00035616,2]
[331564330,1720513841795,-153.0,0.00035644,2]
[331564331,1720513841804,-153.0,0.00035644,2]
[331564332,1720513841814,-153.0,0.00035644,2]
[331564333,1720513841823,-245.3766351,0.000358,2]
[331564334,1720513841833,-306.0,0.0003589,2]
[331564335,1720513841842,-197.4932761,0.0003589,2]
[331564336,1720513841852,-1000.0,0.00036213,3]
[331564337,1720513841862,-1182.49762447,0.00036351,4]
[331564338,1720513841875,-1182.49762447,0.00036351,4]
[331564339,1720513841892,-150.0,0.00036436,2]
[331564340,1720513841901,-153.0,0.00036466,2]
[331564341,1720513841911,-153.0,0.00036466,2]
[331564342,1720513841920,-153.0,0.00036466,2]
[331564343,1720513841929,-153.7904281,0.00036466,2]
[331564344,1720513841939,-153.0,0.00036466,2]
[331564345,1720513841948,-153.0,0.00036466,2]
[331564346,1720513841958,-153.0,0.00036466,2]
[331564347,1720513841968,-153.0,0.00036466,2]
[331564348,1720513841978,-153.0,0.00036466,2]
[331564349,1720513841988,-153.0,0.00036466,2]
[331564350,1720513841997,-153.0,0.00036466,2]
[331564351,1720513842007,-528.3,0.000365,62]
[331564352,1720513842016,-150.0,0.00037,2]
[331564353,1720513842025,-243.46735633,0.00037,4]
[331564354,1720513842035,-177.17588808,0.00037357,4]
[331564355,1720513842044,-153.0,0.0003737,2]
[331564356,1720513842054,-153.0,0.0003737,2]
[331564357,1720513842063,-153.0,0.0003737,2]
[331564358,1720513842073,-153.0,0.0003737,2]
[331564359,1720513842082,-153.0,0.0003737,2]
[331564360,1720513842092,-306.0,0.0003737,2]
[331564361,1720513842101,-306.0,0.0003737,2]
[331564362,1720513842110,-2000.0,0.00037587,4]
[331564363,1720513842120,-153.0,0.00037682,2]
[331564364,1720513842142,-153.0,0.00037682,2]
[331564365,1720513842151,-153.0,0.00037682,2]
[331564366,1720513842161,-153.0,0.00037682,2]
[331564367,1720513842172,-153.0,0.00037682,2]
[331564368,1720513842181,-153.0,0.00037682,2]
[331564369,1720513842191,-153.0,0.00037682,2]
[331564370,1720513842200,-153.0,0.00037682,2]
[331564371,1720513842210,-153.0,0.00037682,2]
[331564372,1720513842221,-191.15,0.00037699,2]
[331564373,1720513842230,-191.15,0.00037699,2]
[331564374,1720513842240,-308.85,0.00037699,2]
[331564375,1720513842249,-154.62117811,0.00037899,4]
[331564376,1720513842259,-154.62117811,0.00037899,4]
[331564377,1720513842268,-12387.22,0.0003799,3]
[331564378,1720513842278,-256.79365305,0.00037999,2]
[331564379,1720513842289,-256.79365305,0.00037999,2]
[331564380,1720513842306,-2934.17161731,0.00038,2]
[331564381,1720513842328,-101153.35815478,0.00038,2]
[331564382,1720513842346,-151.0,0.00038,7]
[331564383,1720513842367,-171.427721,0.00038,7]
[331564384,1720513842386,-171.427721,0.00038,7]
[331564385,1720513842459,-376.198024,0.00038,2]
[331564386,1720513842469,-151.0,0.00038,7]
[331564387,1720513842478,-376.198024,0.00038,2]
[331564388,1720513842488,-1000.0,0.00038,38]
[331564389,1720513842497,-151.0,0.00038,7]
[331564390,1720513842506,-151.0,0.00038,7]
[331564391,1720513842516,-150.0,0.0003806,4]
[331564392,1720513842525,-153.0,0.00038093,2]
[331564393,1720513842534,-153.0,0.00038093,2]
[331564394,1720513842544,-153.0,0.00038093,2]
[331564395,1720513842553,-155.7115019,0.00038093,2]
[331564396,1720513842562,-153.0,0.00038192,2]
[331564397,1720513842571,-153.0,0.00038192,2]
[331564398,1720513842580,-153.0,0.00038192,2]
[331564399,1720513842590,-153.0,0.00038192,2]
[331564400,1720513842599,-153.0,0.00038192,2]
[331564401,1720513842608,-153.0,0.00038192,2]
[331564402,1720513842617,-154.62117811,0.00038229,4]
[331564403,1720513842637,-235.62575763,0.00038264,4]
[331564404,1720513842646,-300.68994512,0.00038332,2]
[331564405,1720513842656,-153.20766236,0.00038407,2]
[331564406,1720513842665,-50000.0,0.00038408,2]
[331564407,1720513842675,-151.0,0.00038408,14]
[331564408,1720513842684,-870.021671,0.00038408,14]
[331564409,1720513842694,-870.021671,0.00038408,14]
[331564410,1720513842703,-435.0,0.00038499,2]
[331564411,1720513842712,-1007.544524,0.000385,27]
[331564412,1720513842723,-30771.68902445,0.00038535,5]
[331564413,1720513842732,-282490.05373,0.00038535,14]
[331564414,1720513842742,-151.0,0.00038536,14]
[331564415,1720513842752,-151.0,0.00038536,14]
[331564416,1720513842761,-151.0,0.00038536,14]
[331564417,1720513842772,-1026.21392941,0.00038536,4]
[331564418,1720513842781,-406.51951615,0.00038536,3]
[331564419,1720513842790,-9222.09683831,0.00038536,7]
[331564420,1720513842800,-303.26839892,0.00038536,4]
[331564421,1720513842809,-154.62117811,0.00038536,4]
[331564422,1720513842819,-575.38036629,0.00038536,4]
[331564423,1720513842828,-870.021671,0.00038536,14]
[331564424,1720513842838,-870.021671,0.00038536,14]
[331564425,1720513842847,-870.021671,0.00038536,14]
[331564426,1720513842857,-254.23242842,0.00038536,4]
[331564427,1720513842866,-870.021671,0.00038536,14]
[331564428,1720513842884,-870.021671,0.00038536,14]
[331564429,1720513842894,-870.021671,0.00038536,14]
[331564430,1720513842904,-511.85013536,0.00038536,2]
[331564432,1720513842913,-434.1734614,0.00038536,2]
[331564434,1720513842923,-221.77627263,0.00038536,2]
[331564436,1720513842933,-500.0,0.00038536,2]
[331564438,1720513842942,-154.62117711,0.00038536,2]
[331564440,1720513842951,-1495.45234145,0.00038536,7]
[331564442,1720513842960,-2921.349999,0.00038536,120]
[331564444,1720513842969,-349.87,0.00038536,30]
[331564446,1720513842979,-1000.0,0.00038536,30]
[331564447,1720513842988,-1000.0,0.00038536,30]
[331564448,1720513842997,-239.663676,0.00038887,2]
[331564449,1720513843007,-155.1936798,0.00039167,4]
[331564450,1720513843016,-151.047,0.00039386,2]
[331564451,1720513843025,-1405.0,0.00039386,2]
[331564452,1720513843035,-639.283137,0.00039394,2]
[331564453,1720513843044,-150.0,0.00039407,2]
[331564454,1720513843053,-153.8013533,0.00039452,2]
[331564455,1720513843062,-306.0,0.00039452,2]
[331564456,1720513843072,-153.0,0.00039452,2]
[331564457,1720513843081,-153.0,0.00039452,2]
[331564458,1720513843090,-153.0,0.00039452,2]
[331564459,1720513843099,-153.0,0.00039452,2]
[331564460,1720513843108,-153.0,0.00039452,2]
[331564461,1720513843117,-153.0,0.00039452,2]
[331564462,1720513843127,-153.0,0.00039452,2]
[331564463,1720513843135,-153.0,0.00039452,2]
[331564464,1720513843145,-154.1216247,0.00039452,2]
[331564465,1720513843154,-683.0,0.00039697,5]
[331564466,1720513843163,-241.754,0.00039736,2]
[331564467,1720513843173,-153.0,0.00039775,2]
[331564468,1720513843182,-153.0,0.00039775,2]
[331564469,1720513843191,-153.0,0.00039775,2]
[331564470,1720513843200,-153.0,0.00039775,2]
[331564471,1720513843209,-3995.05042258,0.00039999,4]
[331564472,1720513843219,-1573.05246703,0.0004,2]
[331564473,1720513843228,-153.0,0.00040559,2]
[331564474,1720513843237,-153.0,0.00040559,2]
[331564475,1720513843247,-153.0,0.00040559,2]
[331564476,1720513843255,-156.708104,0.0004058,2]
[331564477,1720513843264,-385.33783146,0.0004089,42]
[331564478,1720513843274,-505.07079601,0.0004089,4]
[331564480,1720513843283,-1203.0888787,0.00040918,4]
[331564481,1720513843292,-412.6145912,0.00041068,2]
[331564482,1720513843305,-2000.0,0.00041087,4]
[331564483,1720513843314,-999.0,0.00041095,120]
[331564484,1720513843324,-179.2459256,0.00041096,2]
[331564486,1720513843334,-2000.0,0.00041096,4]
[331564488,1720513843344,-151.0,0.00041096,14]
[331564489,1720513843354,-151.0,0.00041096,14]
[331564490,1720513843365,-151.0,0.00041096,14]
[331564491,1720513843375,-162.645419,0.00041178,2]
[331564492,1720513843387,-150.6234414,0.00041279,2]
[331564493,1720513843398,-153.0,0.00041381,2]
[331564494,1720513843407,-153.0,0.00041381,2]
[331564495,1720513843416,-153.0,0.00041381,2]
[331564497,1720513843426,-153.0,0.00041381,2]
[331564499,1720513843436,-153.0,0.00041381,2]
[331564501,1720513843446,-153.0,0.00041381,2]
[331564503,1720513843455,-150.0,0.00041436,2]
[331564505,1720513843464,-999.0,0.00041506,120]
[331564506,1720513843474,-683.0,0.00041787,30]
[331564508,1720513843483,-999.0,0.00041917,120]
[331564509,1720513843493,-301.24688279,0.00041973,4]
[331564510,1720513843502,-238.64412433,0.00041999,4]
[331564511,1720513843511,-160.0,0.00042161,3]
[331564513,1720513843575,-153.0,0.00042192,2]
[331564514,1720513843585,-153.0,0.00042219,2]
[331564515,1720513843595,-153.0,0.00042219,2]
[331564516,1720513843604,-153.0,0.00042219,2]
[331564517,1720513843613,-153.0,0.00042219,2]
[331564518,1720513843623,-153.0,0.00042219,2]
[331564519,1720513843632,-153.0,0.00042219,2]
[331564520,1720513843642,-153.0,0.00042219,2]
[331564521,1720513843651,-151.0,0.00042302,14]
[331564522,1720513843660,-171.427721,0.00042302,14]
[331564523,1720513843669,-171.427721,0.00042302,14]
[331564524,1720513843679,-376.198024,0.00042302,2]
[331564525,1720513843689,-376.198024,0.00042302,2]
[331564526,1720513843698,-11153.2971647,0.00042302,4]
[331564527,1720513843707,-999.0,0.00042328,120]
[331564528,1720513843716,-150.0,0.00042386,2]
[331564529,1720513843725,-1405.0,0.00042386,2]
[331564530,1720513843734,-151.0,0.00042424,14]
[331564531,1720513843743,-870.021671,0.00042424,14]
[331564532,1720513843752,-870.021662,0.00042424,14]
[331564533,1720513843761,-151.0,0.00042424,14]
[331564534,1720513843771,-151.0,0.00042424,14]
[331564535,1720513843780,-1500.0,0.000425,120]
[331564536,1720513843789,-602.49376559,0.00042678,7]
[331564537,1720513843799,-999.0,0.00042739,120]
[331564538,1720513843808,-6260.44958289,0.00042999,20]
[331564539,1720513843817,-212.13522694,0.00042999,4]
[331564540,1720513843827,-2040.34238499,0.00043,120]
[331564541,1720513843836,-1000.0,0.00043,43]
[331564542,1720513843846,-39607.76425653,0.00043,120]
[331564543,1720513843855,-151.0,0.00043,14]
[331564544,1720513843864,-175.3,0.00043024,31]
[331564545,1720513843873,-153.0,0.00043041,2]
[331564546,1720513843882,-153.0,0.00043041,2]
[331564547,1720513843891,-153.0,0.00043041,2]
[331564548,1720513843900,-153.0,0.00043041,2]
[331564549,1720513843910,-153.0,0.00043041,2]
[331564550,1720513843919,-153.0,0.00043041,2]
[331564551,1720513843928,-153.0,0.00043041,2]
[331564552,1720513843937,-153.0,0.00043041,2]
[331564553,1720513843946,-153.0,0.00043041,2]
[331564554,1720513843955,-153.0,0.00043041,2]
[331564555,1720513843965,-153.0,0.00043041,2]
[331564556,1720513843974,-153.0,0.00043041,2]
[331564557,1720513843985,-153.0,0.00043041,2]
[331564558,1720513843994,-201.3193982,0.00043041,2]
[331564559,1720513844003,-999.0,0.0004315,120]
[331564560,1720513844012,-1800.0,0.0004325,120]
[331564561,1720513844022,-154.62117811,0.00043287,10]
[331564562,1720513844033,-175.3,0.00043413,31]
[331564563,1720513844042,-999.0,0.00043561,120]
[331564564,1720513844051,-304.22675637,0.00043615,30]
[331564565,1720513844060,-536.07685891,0.00043615,30]
[331564566,1720513844069,-4856.92412245,0.00043789,120]
[331564567,1720513844078,-16905.43506497,0.0004379,45]
[331564568,1720513844278,-862.29514741,0.0002,2]
[331564576,1720514069762,154.65203293,0.00014999,2]
[331564580,1720514209288,154.65203293,0.00014999,2]
[331564585,1720514353783,154.65203293,0.00014999,2]
[331564588,1720514504806,154.65203293,0.00014999,2]
[331564589,1720514647306,301.65383258,0.00014999,2]
[331564590,1720514659528,244.11093245,0.00014999,2]
[331564592,1720514703818,250.0,0.00015879,2]
[331564593,1720514754566,405.105118,0.00015733,2]
[331564594,1720514806010,-358.3260617,0.00016006,2]
[331564595,1720514806030,-503.09405394,0.00016253,10]
[331564596,1720514806059,-300.0,0.00016254,2]
[331564597,1720514806086,-15362.39394208,0.00016255,2]
[331564598,1720514806112,-1197.313829,0.00016348,2]
[331564599,1720514806136,-166.666666,0.00016438,2]
[331564600,1720514806160,-166.666666,0.00016823,2]
[331564601,1720514806182,-276.64310743,0.00016972,2]
[331564603,1720514940542,268.89567385,0.0001693,2]
[331564664,1720515038747,-300.0,0.00016254,2]
[331564665,1720515038759,-28258.44861875,0.00016255,2]
[331564666,1720515038769,-9479.6946624,0.00016827,2]
[331564667,1720515038779,-1947.70360405,0.0001693,2]
[331564668,1720515038789,-166.666666,0.00017208,2]
[331564669,1720515038799,-24900.0,0.00017381,2]
[331564670,1720515038808,-182.04672115,0.00017531,2]
[331564671,1720515038818,-166.666666,0.00017592,2]
[331564672,1720515038903,-2975.6960057,0.00017879,2]
[331564673,1720515038913,-420.0,0.00017879,2]
[331564674,1720515038922,-166.666666,0.00017977,2]
[331564676,1720515038933,-166.666666,0.00018362,2]
[331564678,1720515038942,-191.12784748,0.00018798,2]
[331564680,1720515038952,-4119.83269054,0.000189,2]
[331564682,1720515038962,-162.738425,0.00019178,2]
[331564684,1720515038972,-587.0,0.00019667,2]
[331564686,1720515038982,-162.645419,0.00019787,2]
[331564687,1720515038992,-332.45239118,0.0002,2]
[331564688,1720515039003,-1065.65690458,0.0002,2]
[331564689,1720515039013,-428.24738691,0.0002,2]
[331564690,1720515039023,-6863.87493251,0.0002,2]
[331564691,1720515039033,-225.71833691,0.0002,2]
[331564692,1720515039043,-763.79636746,0.0002,2]
[331564693,1720515039054,-154.65203293,0.0002,2]
[331564694,1720515039065,-154.65203293,0.0002,2]
[331564695,1720515039075,-155.2509691,0.0002,2]
[331564696,1720515039087,-154.65203293,0.0002,2]
[331564697,1720515039097,-435.0,0.0002,2]
[331564698,1720515039108,-155.27458999,0.0002,2]
[331564699,1720515039119,-155.49752189,0.0002,2]
[331564700,1720515039129,-154.89702132,0.0002,2]
[331564701,1720515039139,-385.33783146,0.0002,2]
[331564702,1720515039149,-200.0,0.0002,2]
[331564703,1720515039160,-150.0,0.00020138,2]
[331564704,1720515039171,-151.44589054,0.00020138,2]
[331564705,1720515039181,-250.0,0.00020685,2]
[331564706,1720515039192,-814.18653683,0.00021,2]
[331564707,1720515039203,-169.04719,0.00021096,2]
[331564708,1720515039214,-648.571686,0.00021096,2]
[331564709,1720515039224,-350.0,0.00021233,2]
[331564710,1720515039235,-627.82724468,0.00021235,2]
[331564711,1720515039245,-247.0,0.00021634,2]
[331564712,1720515039256,-450.0,0.00021781,2]
[331564713,1720515039267,-1636.37767515,0.00022,2]
[331564714,1720515039277,-629.70932684,0.0002205,2]
[331564715,1720515039287,-1689.28232067,0.00022265,2]
[331564716,1720515039297,-1689.28232067,0.00022265,2]
[331564717,1720515039307,-620.39136223,0.00022296,2]
[331564718,1720515039317,-550.0,0.00022329,2]
[331564719,1720515039327,-4308.08858296,0.00022479,2]
[331564720,1720515039338,-48356.213109,0.00022569,3]
[331564721,1720515039348,-11114.08530711,0.00022579,2]
[331564722,1720515039359,-650.0,0.00022877,2]
[331564723,1720515039370,-2000.0,0.00022942,2]
[331564724,1720515039380,-301.75849603,0.00023,2]
[331564725,1720515039390,-620.48546634,0.00023153,2]
[331564726,1720515039400,-150.3645055,0.00023271,2]
[331564727,1720515039410,-620.01956811,0.00023411,2]
[331564728,1720515039420,-750.0,0.00023425,2]
[331564729,1720515039431,-405.105118,0.000236,2]
[331564730,1720515039442,-4119.83269054,0.000239,2]
[331564731,1720515039452,-850.0,0.00023973,2]
[331564732,1720515039462,-500.8578496,0.00024,2]
[331564733,1720515039472,-154.65203293,0.00024,10]
[331564734,1720515039482,-48356.213109,0.00024222,3]
[331564735,1720515039492,-12730.83876737,0.00024242,2]
[331564736,1720515039505,-950.0,0.00024521,2]
[331564737,1720515039515,-200.0,0.00024658,2]
[331564738,1720515039528,-380.0,0.00024658,2]
[331564739,1720515039538,-4308.08858293,0.00024784,2]
[331564740,1720515039548,-248.12757403,0.00024978,2]
[331564741,1720515039558,-300.0,0.00024978,2]
[331564742,1720515039568,-174.05491823,0.00024978,2]
[331564743,1720515039577,-500.0,0.00024978,2]
[331564744,1720515039588,-500.0,0.00024978,2]
[331564745,1720515039597,-500.0,0.00024978,2]
[331564746,1720515039607,-500.0,0.00024978,2]
[331564747,1720515039617,-500.0,0.00024978,2]
[331564748,1720515039626,-500.0,0.00024978,2]
[331564749,1720515039636,-500.0,0.00024978,2]
[331564750,1720515039646,-500.0,0.00024978,2]
[331564751,1720515039657,-500.0,0.00024978,2]
[331564752,1720515039668,-542.95949166,0.00024978,2]
[331564753,1720515039678,-48356.213109,0.0002498,3]
[331564754,1720515039687,-48356.213109,0.0002499,3]
[331564755,1720515039696,-154.62117811,0.00025,2]
[331564756,1720515039706,-154.62117811,0.00025,2]
[331564757,1720515039716,-189.22156458,0.00025,2]
[331564758,1720515039725,-1851.34621195,0.00025,2]
[331564759,1720515039735,-7427.1094573,0.00025,60]
[331564760,1720515039745,-1025.43091416,0.00025,2]
[331564761,1720515039754,-45100.66836002,0.00025,2]
[331564762,1720515039764,-307.64906425,0.00025,2]
[331564763,1720515039774,-856.71308225,0.00025069,2]
[331564764,1720515039784,-48356.213109,0.00025184,3]
[331564765,1720515039793,-48356.213109,0.00025194,3]
[331564766,1720515039803,-52136.2205257,0.00025204,2]
[331564767,1720515039813,-1000.0,0.00026,26]
[331564768,1720515039823,-30000.0,0.00026062,2]
[331564769,1720515039834,-7458.94652043,0.0002649,2]
[331564770,1720515039844,-2058.61750007,0.000266,2]
[331564771,1720515039854,-4308.08858293,0.0002709,2]
[331564772,1720515039864,-166.522732,0.00027123,2]
[331564773,1720515039875,-648.571686,0.00027195,2]
[331564774,1720515039885,-361.6373675,0.00027397,2]
[331564775,1720515039894,-578.2337578,0.00027397,2]
[331564776,1720515039904,-578.2337578,0.00027397,2]
[331564777,1720515039914,-578.2337578,0.00027397,2]
[331564778,1720515039924,-578.2337578,0.00027397,2]
[331564779,1720515039935,-578.2337578,0.00027397,2]
[331564780,1720515039945,-578.2337578,0.00027397,2]
[331564781,1720515039955,-578.2337578,0.00027397,2]
[331564782,1720515039966,-578.2337578,0.00027397,2]
[331564783,1720515039976,-578.2337578,0.00027397,2]
[331564784,1720515039986,-578.2337578,0.00027397,2]
[331564785,1720515039996,-578.2337578,0.00027397,2]
[331564786,1720515040006,-578.2337578,0.00027397,2]
[331564787,1720515040017,-578.2337578,0.00027397,2]
[331564788,1720515040026,-578.2337578,0.00027397,2]
[331564789,1720515040036,-578.2337578,0.00027397,2]
[331564790,1720515040046,-578.2337578,0.00027397,2]
[331564791,1720515040056,-578.2337578,0.00027397,2]
[331564792,1720515040067,-578.2337578,0.00027397,2]
[331564793,1720515040077,-578.2337578,0.00027397,2]
[331564794,1720515040091,-578.2337578,0.00027397,2]
[331564795,1720515040100,-578.2337578,0.00027397,2]
[331564796,1720515040110,-578.2337578,0.00027397,2]
[331564798,1720515040120,-578.2337578,0.00027397,2]
[331564799,1720515040130,-578.2337578,0.00027397,2]
[331564800,1720515040139,-578.2337578,0.00027397,2]
[331564801,1720515040149,-578.2337578,0.00027397,2]
[331564802,1720515040160,-578.2337578,0.00027397,2]
[331564803,1720515040170,-578.2337578,0.00027397,2]
[331564804,1720515040180,-578.2337578,0.00027397,2]
[331564806,1720515040190,-578.2337578,0.00027397,2]
[331564807,1720515040200,-578.2337578,0.00027397,2]
[331564809,1720515040210,-578.2337578,0.00027397,2]
[331564810,1720515040220,-578.2337578,0.00027397,2]
[331564811,1720515040230,-578.2337578,0.00027397,2]
[331564812,1720515040240,-578.2337578,0.00027397,2]
[331564813,1720515040249,-578.2337578,0.00027397,2]
[331564814,1720515040259,-578.2337578,0.00027397,2]
[331564818,1720515040328,-578.2337578,0.00027397,2]
[331564820,1720515040341,-578.2337578,0.00027397,2]
[331564822,1720515040351,-578.2337578,0.00027397,2]
[331564823,1720515040361,-578.2337578,0.00027397,2]
[331564824,1720515040371,-578.2337578,0.00027397,2]
[331564825,1720515040381,-578.2337578,0.00027397,2]
[331564826,1720515040390,-578.2337578,0.00027397,2]
[331564827,1720515040399,-578.2337578,0.00027397,2]
[331564828,1720515040409,-578.2337578,0.00027397,2]
[331564829,1720515040419,-578.2337578,0.00027397,2]
[331564830,1720515040428,-578.2337578,0.00027397,2]
[331564831,1720515040437,-578.2337578,0.00027397,2]
[331564832,1720515040447,-578.2337578,0.00027397,2]
[331564833,1720515040456,-578.2337578,0.00027397,2]
[331564834,1720515040466,-578.2337578,0.00027397,2]
[331564836,1720515040476,-578.2337578,0.00027397,2]
[331564838,1720515040487,-578.2337578,0.00027397,2]
[331564839,1720515040497,-578.2337578,0.00027397,2]
[331564841,1720515040507,-191.0559141,0.00027397,120]
[331564842,1720515040516,-21830.46542917,0.000275,2]
[331564843,1720515040526,-172.42394717,0.00028,30]
[331564844,1720515040536,-268.60335139,0.00028,2]
[331564845,1720515040545,-1743.19470966,0.0002877,2]
[331564846,1720515040554,-4119.83269054,0.000289,2]
[331564847,1720515040564,-1000.0,0.00029,29]
[331564848,1720515040573,-4308.08858293,0.00029395,2]
[331564849,1720515040583,-248.18592096,0.000298,120]
[331564850,1720515040595,-304.22675637,0.0003,30]
[331564852,1720515040605,-170.45207762,0.0003,4]
[331564853,1720515040615,-643.5565645,0.0003,4]
[331564854,1720515040625,-284.56366131,0.0003,3]
[331564855,1720515040634,-426.0,0.0003,2]
[331564856,1720515040644,-1000.0,0.00031,31]
[331564857,1720515040655,-169.04719,0.00031631,2]
[331564858,1720515040669,-4308.08858293,0.000317,2]
[331564859,1720515040678,-172508.45990312,0.000318,2]
[331564860,1720515040688,-151.0,0.000318,7]
[331564861,1720515040699,-156.702308,0.000318,7]
[331564862,1720515040708,-160.556798,0.000318,7]
[331564863,1720515040722,-162.077055,0.000318,7]
[331564864,1720515040731,-151.0,0.000318,7]
[331564865,1720515040743,-171.427721,0.000318,7]
[331564866,1720515040753,-171.427721,0.000318,7]
[331564867,1720515040763,-206.637899,0.000318,7]
[331564868,1720515040773,-206.637899,0.000318,7]
[331564869,1720515040783,-151.0,0.000318,7]
[331564870,1720515040792,-152.713107,0.000318,7]
[331564871,1720515040801,-376.198024,0.000318,2]
[331564872,1720515040810,-376.198024,0.000318,2]
[331564873,1720515040819,-151.0,0.000318,7]
[331564874,1720515040828,-151.0,0.000318,7]
[331564875,1720515040839,-151.0,0.000318,7]
[331564876,1720515040848,-151.0,0.000318,7]
[331564877,1720515040858,-151.0,0.000318,7]
[331564878,1720515040868,-151.0,0.000318,7]
[331564879,1720515040877,-500.30375304,0.00032,30]
[331564880,1720515040886,-1740.043342,0.00032877,7]
[331564881,1720515040895,-150.0,0.00032877,2]
[331564882,1720515040904,-250.0,0.00033,30]
[331564883,1720515040913,-254.34115988,0.00033,2]
[331564884,1720515041057,-171.65884012,0.00033,2]
[331564885,1720515041066,-648.571686,0.00033295,2]
[331564886,1720515041076,-88745.31066533,0.00033333,2]
[331564887,1720515041086,-250.0,0.000335,30]
[331564888,1720515041095,-1000.0,0.00034,34]
[331564889,1720515041105,-399.877,0.00034,7]
[331564890,1720515041118,-162.738425,0.00034399,2]
[331564891,1720515041127,-150.0,0.00034489,2]
[331564892,1720515041137,-265.09411912,0.0003456,2]
[331564893,1720515041146,-394.28228504,0.0003456,4]
[331564894,1720515041156,-1940.17760531,0.00034588,2]
[331564895,1720515041166,-166.471365,0.00034678,7]
[331564896,1720515041176,-151.0,0.00034688,7]
[331564897,1720515041186,-151.0,0.00034688,7]
[331564898,1720515041197,-154.65203293,0.00034702,4]
[331564899,1720515041207,-1282.49405735,0.00034728,12]
[331564900,1720515041217,-1000.0,0.000348,3]
[331564901,1720515041227,-235.62575763,0.00034811,4]
[331564902,1720515041236,-153.0,0.00034822,2]
[331564903,1720515041246,-5910.9073751,0.00034888,2]
[331564904,1720515041256,-154.65203293,0.00034899,4]
[331564905,1720515041265,-377487.86155351,0.000349,2]
[331564906,1720515041377,-9664.05105441,0.000349,2]
[331564907,1720515041498,-634.23,0.00022469,3]
[331564908,1720515041507,-25384.21496471,0.000349,2]
[331564909,1720515041516,-18370.23605449,0.000349,2]
[331564910,1720515041525,-151.0,0.000349,7]
[331564911,1720515041534,-151.0,0.000349,7]
[331564912,1720515041544,-171.427721,0.000349,7]
[331564913,1720515041553,-171.427721,0.000349,7]
[331564914,1720515041562,-1740.043342,0.000349,7]
[331564915,1720515041571,-206.637899,0.000349,7]
[331564916,1720515041580,-206.637899,0.000349,7]
[331564917,1720515041591,-151.0,0.000349,7]
[331564918,1720515041600,-376.198024,0.000349,2]
[331564919,1720515041609,-376.198024,0.000349,2]
[331564920,1720515041618,-290.926158,0.000349,7]
[331564921,1720515041627,-151.0,0.000349,7]
[331564922,1720515041636,-151.0,0.000349,7]
[331564923,1720515041645,-151.0,0.000349,7]
[331564924,1720515041655,-187.074297,0.000349,7]
[331564925,1720515041668,-192.802,0.00034958,30]
[331564926,1720515041677,-1662.41784921,0.00035,4]
[331564927,1720515041686,-275.22284259,0.00035,120]
[331564928,1720515041695,-1183.21854684,0.00035,2]
[331564929,1720515041704,-153.20766236,0.00035087,2]
[331564930,1720515041714,-12387.22,0.00035616,3]
[331564931,1720515041723,-528.3,0.000365,62]
[331564932,1720515041732,-153.0,0.00036548,2]
[331564933,1720515041743,-154.65203293,0.00037,4]
[331564934,1720515041753,-208.81360879,0.00037899,4]
[331564935,1720515041764,-536.07685891,0.00038,30]